[Event "*** SCC Grand Prix: Titled Tuesday Blitz"]
[Site "Chess.com"]
[Date "2020.10.13"]
[Round "4"]
[White "MarceloPlaya"]
[Black "yourstrulyme"]
[Result "1-0"]
[WhiteElo "2282"]
[BlackElo "2411"]
[TimeControl "180+1"]
[EndTime "10:38:42 PDT"]
[Termination "MarceloPlaya won by checkmate"]

1. e4 {[%clk 0:03:00.9]} 1... b6 {[%clk 0:03:00]} 2. d4 {[%clk 0:02:59.5]} 2...
Bb7 {[%clk 0:03:00.5]} 3. Nc3 {[%clk 0:02:58.3]} 3... e6 {[%clk 0:03:00.2]} 4.
Be3 {[%clk 0:02:55.4]} 4... Bb4 {[%clk 0:02:57.1]} 5. Bd3 {[%clk 0:02:52]} 5...
Nf6 {[%clk 0:02:56.6]} 6. f3 {[%clk 0:02:47.4]} 6... d5 {[%clk 0:02:53.1]} 7. e5
{[%clk 0:02:46.3]} 7... Nfd7 {[%clk 0:02:51.4]} 8. Qd2 {[%clk 0:02:43.3]} 8...
c5 {[%clk 0:02:48.4]} 9. a3 {[%clk 0:02:40.8]} 9... Bxc3 {[%clk 0:02:47]} 10.
bxc3 {[%clk 0:02:40.3]} 10... Ba6 {[%clk 0:02:44.1]} 11. Nh3 {[%clk 0:02:34.9]}
11... Bxd3 {[%clk 0:02:43.9]} 12. cxd3 {[%clk 0:02:34.1]} 12... Nc6 {[%clk
0:02:42.7]} 13. O-O {[%clk 0:02:28.5]} 13... O-O {[%clk 0:02:20.2]} 14. f4
{[%clk 0:02:27.5]} 14... cxd4 {[%clk 0:02:15.6]} 15. cxd4 {[%clk 0:02:25.5]}
15... Ne7 {[%clk 0:02:15.5]} 16. g4 {[%clk 0:02:20.6]} 16... Qe8 {[%clk
0:02:06.5]} 17. f5 {[%clk 0:02:17.7]} 17... Kh8 {[%clk 0:01:57.3]} 18. f6 {[%clk
0:01:59.1]} 18... gxf6 {[%clk 0:01:55.6]} 19. exf6 {[%clk 0:01:58.5]} 19... Ng6
{[%clk 0:01:50.2]} 20. Bh6 {[%clk 0:01:56.6]} 20... Rg8 {[%clk 0:01:50.3]} 21.
Bg7+ {[%clk 0:01:56.3]} 21... Rxg7 {[%clk 0:01:50.5]} 22. fxg7+ {[%clk
0:01:56.2]} 22... Kxg7 {[%clk 0:01:51]} 23. Rae1 {[%clk 0:01:48.9]} 23... Nf6
{[%clk 0:01:42]} 24. g5 {[%clk 0:01:26.5]} 24... Ng8 {[%clk 0:01:31.4]} 25. Nf4
{[%clk 0:01:22.9]} 25... Nxf4 {[%clk 0:01:28.8]} 26. Qxf4 {[%clk 0:01:18.9]}
26... Ne7 {[%clk 0:01:28.9]} 27. Qf6+ {[%clk 0:01:16.4]} 27... Kg8 {[%clk
0:01:28.9]} 28. h4 {[%clk 0:01:12.1]} 28... Qf8 {[%clk 0:01:20.4]} 29. h5 {[%clk
0:01:10.9]} 29... Re8 {[%clk 0:01:18.2]} 30. Rxe6 {[%clk 0:00:56.4]} 30... Nc8
{[%clk 0:00:44.9]} 31. Rxe8 {[%clk 0:00:52.6]} 31... Qxe8 {[%clk 0:00:45.8]} 32.
h6 {[%clk 0:00:48.4]} 32... Qe3+ {[%clk 0:00:45.7]} 33. Kg2 {[%clk 0:00:47.4]}
33... Qe2+ {[%clk 0:00:45.1]} 34. Kg3 {[%clk 0:00:44.2]} 34... Qxd3+ {[%clk
0:00:43.2]} 35. Rf3 {[%clk 0:00:41.2]} 35... Qg6 {[%clk 0:00:24]} 36. Qd8#
{[%clk 0:00:39.2]} 1-0

[Event "*** SCC Grand Prix: Titled Tuesday Blitz"]
[Site "Chess.com"]
[Date "2020.10.13"]
[Round "4"]
[White "KarstenHansch"]
[Black "Ze-Pequeno"]
[Result "0-1"]
[WhiteElo "2473"]
[BlackElo "2174"]
[TimeControl "180+1"]
[EndTime "10:38:47 PDT"]
[Termination "Ze-Pequeno won by resignation"]

1. e4 {[%clk 0:03:00.9]} 1... c5 {[%clk 0:02:59.1]} 2. Nf3 {[%clk 0:03:00.2]}
2... d6 {[%clk 0:02:58.9]} 3. Nc3 {[%clk 0:02:59.9]} 3... Nf6 {[%clk 0:02:58.5]}
4. Bc4 {[%clk 0:02:59]} 4... Nc6 {[%clk 0:02:56.7]} 5. O-O {[%clk 0:02:58.8]}
5... g6 {[%clk 0:02:54]} 6. d4 {[%clk 0:02:57.3]} 6... cxd4 {[%clk 0:02:53.9]}
7. Nxd4 {[%clk 0:02:58.2]} 7... Bd7 {[%clk 0:02:50]} 8. Bb3 {[%clk 0:02:52.4]}
8... Bg7 {[%clk 0:02:49.2]} 9. Nde2 {[%clk 0:02:40.2]} 9... O-O {[%clk
0:02:47.6]} 10. f3 {[%clk 0:02:40.2]} 10... b5 {[%clk 0:02:38.9]} 11. Be3 {[%clk
0:02:15.5]} 11... Na5 {[%clk 0:01:55.7]} 12. Qd3 {[%clk 0:01:57.1]} 12... b4
{[%clk 0:01:49.8]} 13. Nd5 {[%clk 0:01:55.5]} 13... Nxb3 {[%clk 0:01:46.2]} 14.
axb3 {[%clk 0:01:48.9]} 14... Nxd5 {[%clk 0:01:45.2]} 15. exd5 {[%clk
0:01:48.7]} 15... Bxb2 {[%clk 0:01:26]} 16. Rxa7 {[%clk 0:01:48.2]} 16... Rxa7
{[%clk 0:01:25.9]} 17. Bxa7 {[%clk 0:01:49.1]} 17... Qa5 {[%clk 0:01:25.6]} 18.
Bd4 {[%clk 0:01:48]} 18... Bb5 {[%clk 0:01:21.3]} 19. Qe3 {[%clk 0:01:22.7]}
19... Bxd4 {[%clk 0:01:17.7]} 20. Nxd4 {[%clk 0:01:21.8]} 20... Bxf1 {[%clk
0:01:17.1]} 21. Kxf1 {[%clk 0:01:22.7]} 21... Qa1+ {[%clk 0:01:08.8]} 22. Kf2
{[%clk 0:01:22.4]} 22... Qd1 {[%clk 0:01:09.1]} 23. Nc6 {[%clk 0:01:17]} 23...
Qxc2+ {[%clk 0:01:06.4]} 24. Kg3 {[%clk 0:01:17]} 24... e5 {[%clk 0:00:57.4]}
25. Nxb4 {[%clk 0:00:58]} 25... Qd1 {[%clk 0:00:41.1]} 26. Nc6 {[%clk
0:00:52.2]} 26... Kg7 {[%clk 0:00:33.8]} 27. Ne7 {[%clk 0:00:45.7]} 27... Re8
{[%clk 0:00:27.4]} 28. Qg5 {[%clk 0:00:44.9]} 28... Qe1+ {[%clk 0:00:27]} 29.
Kh3 {[%clk 0:00:44.4]} 29... Qb1 {[%clk 0:00:22.9]} 30. b4 {[%clk 0:00:36.2]}
30... f6 {[%clk 0:00:21.5]} 0-1

[Event "*** SCC Grand Prix: Titled Tuesday Blitz"]
[Site "Chess.com"]
[Date "2020.10.13"]
[Round "4"]
[White "Infernal_XaM"]
[Black "shrek4life02"]
[Result "1-0"]
[WhiteElo "2871"]
[BlackElo "2575"]
[TimeControl "180+1"]
[EndTime "10:38:49 PDT"]
[Termination "Infernal_XaM won by resignation"]

1. d4 {[%clk 0:03:00.9]} 1... Nf6 {[%clk 0:02:59.2]} 2. c4 {[%clk 0:03:01.7]}
2... c6 {[%clk 0:02:59.2]} 3. Nc3 {[%clk 0:03:02]} 3... d5 {[%clk 0:02:59.9]} 4.
Nf3 {[%clk 0:03:02.5]} 4... g6 {[%clk 0:02:59.9]} 5. Bf4 {[%clk 0:02:58.9]} 5...
Bg7 {[%clk 0:03:00.1]} 6. e3 {[%clk 0:02:57.9]} 6... O-O {[%clk 0:02:59.9]} 7.
Be2 {[%clk 0:02:57.9]} 7... dxc4 {[%clk 0:03:00.4]} 8. Bxc4 {[%clk 0:02:57.7]}
8... b5 {[%clk 0:03:01.1]} 9. Bb3 {[%clk 0:02:57.7]} 9... a5 {[%clk 0:03:01.4]}
10. a3 {[%clk 0:02:57.2]} 10... Nbd7 {[%clk 0:02:57.7]} 11. O-O {[%clk
0:02:56.5]} 11... Bb7 {[%clk 0:02:53.2]} 12. Rc1 {[%clk 0:02:56.5]} 12... Qb6
{[%clk 0:02:46.8]} 13. e4 {[%clk 0:02:52]} 13... c5 {[%clk 0:02:22.6]} 14. e5
{[%clk 0:02:51.5]} 14... Nh5 {[%clk 0:02:05.4]} 15. Be3 {[%clk 0:02:51.4]} 15...
c4 {[%clk 0:01:58.9]} 16. Ba2 {[%clk 0:02:48.6]} 16... Qa6 {[%clk 0:01:57.7]}
17. a4 {[%clk 0:02:46.2]} 17... b4 {[%clk 0:01:42.1]} 18. Nb5 {[%clk 0:02:45.9]}
18... b3 {[%clk 0:01:41]} 19. Bb1 {[%clk 0:02:45.7]} 19... Rac8 {[%clk
0:01:40.2]} 20. Nd2 {[%clk 0:02:42.6]} 20... Nb6 {[%clk 0:01:35.2]} 21. Nc3
{[%clk 0:02:35.2]} 21... Nxa4 {[%clk 0:01:31.7]} 22. Nxa4 {[%clk 0:02:33.3]}
22... Qc6 {[%clk 0:01:31.6]} 23. Be4 {[%clk 0:02:33.4]} 23... Qxa4 {[%clk
0:01:29.3]} 24. Bxb7 {[%clk 0:02:33.3]} 24... Rc7 {[%clk 0:01:10.6]} 25. Bd5
{[%clk 0:02:30.4]} 25... Rfc8 {[%clk 0:01:07.8]} 26. Rxc4 {[%clk 0:02:14.3]}
26... Rxc4 {[%clk 0:00:59.1]} 27. Nxc4 {[%clk 0:02:13.3]} 27... Qa2 {[%clk
0:00:51.8]} 28. Nb6 {[%clk 0:02:07.2]} 28... Rb8 {[%clk 0:00:51.1]} 29. Bxb3
{[%clk 0:02:06.2]} 29... Qxb2 {[%clk 0:00:49.6]} 30. d5 {[%clk 0:01:55.7]} 30...
Bxe5 {[%clk 0:00:44]} 31. Nc4 {[%clk 0:01:55.2]} 31... Bxh2+ {[%clk 0:00:36.9]}
32. Kxh2 {[%clk 0:01:54.9]} 32... Qxb3 {[%clk 0:00:37.6]} 33. Qxb3 {[%clk
0:01:54]} 33... Rxb3 {[%clk 0:00:38.5]} 34. Nxa5 {[%clk 0:01:54.6]} 34... Rd3
{[%clk 0:00:38.8]} 35. Nc6 {[%clk 0:01:53.6]} 35... Kf8 {[%clk 0:00:33.7]} 36.
Re1 {[%clk 0:01:51]} 36... e6 {[%clk 0:00:14.9]} 37. dxe6 {[%clk 0:01:45.1]}
37... fxe6 {[%clk 0:00:14]} 38. Bh6+ {[%clk 0:01:45.2]} 38... Ke8 {[%clk
0:00:14.6]} 39. Rxe6+ {[%clk 0:01:44.6]} 39... Kd7 {[%clk 0:00:15.2]} 40. Ne5+
{[%clk 0:01:44.6]} 40... Kxe6 {[%clk 0:00:15.9]} 41. Nxd3 {[%clk 0:01:45.2]}
41... Nf6 {[%clk 0:00:16.5]} 42. f3 {[%clk 0:01:42.2]} 42... Ng8 {[%clk
0:00:16.7]} 43. Bc1 {[%clk 0:01:41.6]} 43... Kf5 {[%clk 0:00:17.4]} 44. Kg3
{[%clk 0:01:41.7]} 44... Nf6 {[%clk 0:00:16.8]} 45. Kf2 {[%clk 0:01:41]} 45...
Nd5 {[%clk 0:00:17.2]} 46. Nc5 {[%clk 0:01:39]} 46... h5 {[%clk 0:00:16.2]} 47.
Ne4 {[%clk 0:01:38.5]} 47... Ne7 {[%clk 0:00:16.2]} 48. Bd2 {[%clk 0:01:38.7]}
48... Nd5 {[%clk 0:00:16.9]} 49. Ng3+ {[%clk 0:01:38.5]} 49... Ke6 {[%clk
0:00:17]} 50. Ke2 {[%clk 0:01:39]} 50... h4 {[%clk 0:00:16.8]} 51. Ne4 {[%clk
0:01:38.8]} 51... Kf5 {[%clk 0:00:17.2]} 52. Bg5 {[%clk 0:01:37.3]} 52... Nc7
{[%clk 0:00:12.6]} 53. Bxh4 {[%clk 0:01:37]} 53... Ne6 {[%clk 0:00:13.5]} 54.
g4+ {[%clk 0:01:36.9]} 54... Ke5 {[%clk 0:00:11.7]} 55. Bg3+ {[%clk 0:01:37]}
55... Kd4 {[%clk 0:00:12.4]} 56. Kf2 {[%clk 0:01:36.5]} 56... g5 {[%clk
0:00:12.8]} 57. Bd6 {[%clk 0:01:34.9]} 57... Kd5 {[%clk 0:00:12.7]} 58. Be7
{[%clk 0:01:35.1]} 1-0

[Event "*** SCC Grand Prix: Titled Tuesday Blitz"]
[Site "Chess.com"]
[Date "2020.10.13"]
[Round "4"]
[White "DrMamaliga"]
[Black "PetrolulSah"]
[Result "1-0"]
[WhiteElo "2362"]
[BlackElo "2168"]
[TimeControl "180+1"]
[EndTime "10:38:49 PDT"]
[Termination "DrMamaliga won by resignation"]

1. c4 {[%clk 0:03:00.7]} 1... Nf6 {[%clk 0:02:58.8]} 2. Nf3 {[%clk 0:02:59.4]}
2... g6 {[%clk 0:02:56.9]} 3. b4 {[%clk 0:02:57.4]} 3... Bg7 {[%clk 0:02:54.9]}
4. Bb2 {[%clk 0:02:57.7]} 4... O-O {[%clk 0:02:53]} 5. g3 {[%clk 0:02:58.2]}
5... a5 {[%clk 0:02:48.3]} 6. b5 {[%clk 0:02:57.8]} 6... b6 {[%clk 0:02:36.4]}
7. Bg2 {[%clk 0:02:56.7]} 7... Bb7 {[%clk 0:02:36.6]} 8. O-O {[%clk 0:02:57.3]}
8... Ne4 {[%clk 0:02:23.4]} 9. Bxg7 {[%clk 0:02:55.9]} 9... Kxg7 {[%clk
0:02:23.8]} 10. d3 {[%clk 0:02:55]} 10... Nc5 {[%clk 0:02:22.8]} 11. Qc2 {[%clk
0:02:50.7]} 11... f6 {[%clk 0:02:21.4]} 12. Nbd2 {[%clk 0:02:44.9]} 12... e5
{[%clk 0:02:21.1]} 13. e3 {[%clk 0:02:41.3]} 13... d6 {[%clk 0:02:20.1]} 14. d4
{[%clk 0:02:38.9]} 14... Ne6 {[%clk 0:02:17.2]} 15. a4 {[%clk 0:02:33.9]} 15...
Nd7 {[%clk 0:02:14.3]} 16. Rac1 {[%clk 0:02:31.9]} 16... exd4 {[%clk 0:01:59]}
17. exd4 {[%clk 0:02:28.1]} 17... f5 {[%clk 0:01:44.2]} 18. Rfe1 {[%clk
0:02:25.6]} 18... Re8 {[%clk 0:01:43.9]} 19. h4 {[%clk 0:02:18.7]} 19... Nf6
{[%clk 0:01:43.4]} 20. Rxe6 {[%clk 0:02:15]} 20... Rxe6 {[%clk 0:01:40.1]} 21.
Ng5 {[%clk 0:02:15.5]} 21... Bd5 {[%clk 0:01:09.7]} 22. cxd5 {[%clk 0:02:09]}
22... Re8 {[%clk 0:01:08.3]} 23. Ne6+ {[%clk 0:02:09.1]} 23... Rxe6 {[%clk
0:01:08.4]} 24. dxe6 {[%clk 0:02:10]} 24... Rc8 {[%clk 0:01:08.1]} 25. d5 {[%clk
0:02:05]} 25... Qe7 {[%clk 0:00:53]} 26. Qc3 {[%clk 0:02:02.9]} 26... Kg8 {[%clk
0:00:51.5]} 27. Nb3 {[%clk 0:02:00.5]} 27... Ng4 {[%clk 0:00:50.9]} 28. Nd4
{[%clk 0:01:57.9]} 28... Ne5 {[%clk 0:00:50.8]} 29. f4 {[%clk 0:01:55.3]} 29...
Ng4 {[%clk 0:00:50.2]} 30. Nc6 {[%clk 0:01:54.8]} 30... Qf8 {[%clk 0:00:46]} 31.
Bf3 {[%clk 0:01:46.5]} 31... Nf6 {[%clk 0:00:43.6]} 32. Na7 {[%clk 0:01:41]}
32... Ra8 {[%clk 0:00:40.1]} 33. Qxc7 {[%clk 0:01:40.4]} 33... Ne4 {[%clk
0:00:21.1]} 34. Bxe4 {[%clk 0:01:37.7]} 34... fxe4 {[%clk 0:00:22]} 35. Qf7+
{[%clk 0:01:36.3]} 35... Qxf7 {[%clk 0:00:21.4]} 36. exf7+ {[%clk 0:01:37.2]}
36... Kxf7 {[%clk 0:00:21.6]} 37. Rc7+ {[%clk 0:01:34.6]} 37... Kf6 {[%clk
0:00:21.5]} 38. Nc8 {[%clk 0:01:32.6]} 38... Kf5 {[%clk 0:00:18.6]} 39. Kf2
{[%clk 0:01:32.1]} 39... Kg4 {[%clk 0:00:18.3]} 40. Nxd6 {[%clk 0:01:26.6]}
40... e3+ {[%clk 0:00:13.6]} 41. Kxe3 {[%clk 0:01:25.4]} 41... Rd8 {[%clk
0:00:13.5]} 42. Ne4 {[%clk 0:01:21.3]} 42... Kh3 {[%clk 0:00:09.7]} 43. Kf3
{[%clk 0:01:19.5]} 43... h6 {[%clk 0:00:07.9]} 44. d6 {[%clk 0:01:18.8]} 44...
g5 {[%clk 0:00:06.8]} 45. hxg5 {[%clk 0:01:17.6]} 45... h5 {[%clk 0:00:06.9]}
46. Rc1 {[%clk 0:01:15.8]} 46... Kh2 {[%clk 0:00:06.6]} 47. Nf2 {[%clk
0:01:14.4]} 1-0

[Event "*** SCC Grand Prix: Titled Tuesday Blitz"]
[Site "Chess.com"]
[Date "2020.10.13"]
[Round "4"]
[White "Meri-Arabidze"]
[Black "WuinaterJr"]
[Result "1-0"]
[WhiteElo "2700"]
[BlackElo "2528"]
[TimeControl "180+1"]
[EndTime "10:38:50 PDT"]
[Termination "Meri-Arabidze won by resignation"]

1. d4 {[%clk 0:02:59.6]} 1... Nf6 {[%clk 0:02:57.7]} 2. c4 {[%clk 0:02:59.4]}
2... e6 {[%clk 0:02:57.5]} 3. Nf3 {[%clk 0:02:59.5]} 3... d5 {[%clk 0:02:56.6]}
4. Nc3 {[%clk 0:02:59.4]} 4... Bb4 {[%clk 0:02:56.3]} 5. Bg5 {[%clk 0:02:58.8]}
5... h6 {[%clk 0:02:55.1]} 6. Bxf6 {[%clk 0:02:59]} 6... Qxf6 {[%clk 0:02:56]}
7. Qa4+ {[%clk 0:02:57.9]} 7... Nc6 {[%clk 0:02:55.6]} 8. e3 {[%clk 0:02:58.5]}
8... O-O {[%clk 0:02:54.7]} 9. Be2 {[%clk 0:02:57.2]} 9... dxc4 {[%clk
0:02:50.1]} 10. O-O {[%clk 0:02:56.3]} 10... Bxc3 {[%clk 0:02:39.7]} 11. bxc3
{[%clk 0:02:55.8]} 11... e5 {[%clk 0:02:40.2]} 12. Qxc4 {[%clk 0:02:48]} 12...
Qe7 {[%clk 0:02:10.7]} 13. Rab1 {[%clk 0:02:35.7]} 13... Bf5 {[%clk 0:02:02.4]}
14. Rb2 {[%clk 0:02:29.9]} 14... Qa3 {[%clk 0:01:46.9]} 15. Qb3 {[%clk
0:01:44.5]} 15... Qxb3 {[%clk 0:01:46.2]} 16. Rxb3 {[%clk 0:01:42.9]} 16... exd4
{[%clk 0:01:43.2]} 17. cxd4 {[%clk 0:01:43.1]} 17... Rab8 {[%clk 0:01:25.6]} 18.
Rc1 {[%clk 0:01:40.1]} 18... Rfd8 {[%clk 0:01:19.8]} 19. h3 {[%clk 0:01:39.6]}
19... Be6 {[%clk 0:01:17.6]} 20. Ra3 {[%clk 0:01:38.7]} 20... f6 {[%clk
0:01:04]} 21. Bc4 {[%clk 0:01:36.6]} 21... Kf7 {[%clk 0:01:01.3]} 22. Nd2 {[%clk
0:01:35.1]} 22... Bxc4 {[%clk 0:00:45.7]} 23. Rxc4 {[%clk 0:01:36]} 23... a6
{[%clk 0:00:40.9]} 24. Ne4 {[%clk 0:01:35.7]} 24... Rd5 {[%clk 0:00:35]} 25. Nc5
{[%clk 0:01:34.7]} 25... Ne7 {[%clk 0:00:32.1]} 26. e4 {[%clk 0:01:30.7]} 26...
Rd6 {[%clk 0:00:31.9]} 27. d5 {[%clk 0:01:31]} 27... c6 {[%clk 0:00:27.1]} 28.
Rb4 {[%clk 0:01:04.1]} 28... cxd5 {[%clk 0:00:26.7]} 29. Nxb7 {[%clk 0:01:01.2]}
29... Rd7 {[%clk 0:00:24.6]} 30. Nd6+ {[%clk 0:01:00.8]} 30... Rxd6 {[%clk
0:00:22.8]} 31. Rxb8 {[%clk 0:01:01.7]} 31... dxe4 {[%clk 0:00:22.4]} 32. Ra8
{[%clk 0:00:59.4]} 32... f5 {[%clk 0:00:20.6]} 33. R8xa6 {[%clk 0:00:58.4]}
33... Rd1+ {[%clk 0:00:21.5]} 34. Kh2 {[%clk 0:00:58.5]} 34... Rd2 {[%clk
0:00:22.2]} 35. Ra7 {[%clk 0:00:47.8]} 35... Rxf2 {[%clk 0:00:21.6]} 36. Rb3
{[%clk 0:00:47]} 36... e3 {[%clk 0:00:13.4]} 37. Rxe3 {[%clk 0:00:45.7]} 1-0

[Event "*** SCC Grand Prix: Titled Tuesday Blitz"]
[Site "Chess.com"]
[Date "2020.10.13"]
[Round "4"]
[White "peixe64"]
[Black "Evachess2006"]
[Result "1-0"]
[WhiteElo "2360"]
[BlackElo "1621"]
[TimeControl "180+1"]
[EndTime "10:38:50 PDT"]
[Termination "peixe64 won on time"]

1. e4 {[%clk 0:03:00.9]} 1... e5 {[%clk 0:02:55.9]} 2. Nf3 {[%clk 0:03:00.9]}
2... Nc6 {[%clk 0:02:54.8]} 3. Bb5 {[%clk 0:03:01.4]} 3... a6 {[%clk 0:02:50.8]}
4. Ba4 {[%clk 0:03:00.6]} 4... Nf6 {[%clk 0:02:47.4]} 5. O-O {[%clk 0:03:00.3]}
5... Be7 {[%clk 0:02:33.5]} 6. Bxc6 {[%clk 0:02:59]} 6... dxc6 {[%clk
0:02:29.7]} 7. d3 {[%clk 0:02:59.4]} 7... Bg4 {[%clk 0:02:23.6]} 8. Nbd2 {[%clk
0:02:50.9]} 8... Bd6 {[%clk 0:02:07.6]} 9. h3 {[%clk 0:02:49.4]} 9... Bh5 {[%clk
0:01:58.4]} 10. d4 {[%clk 0:02:34.9]} 10... O-O {[%clk 0:01:25.8]} 11. dxe5
{[%clk 0:02:18.2]} 11... Bxe5 {[%clk 0:01:06.9]} 12. g4 {[%clk 0:02:14.8]} 12...
Nxg4 {[%clk 0:00:53.9]} 13. Nxe5 {[%clk 0:01:56.4]} 13... Nxe5 {[%clk
0:00:21.4]} 14. Qxh5 {[%clk 0:01:53.5]} 14... Ng6 {[%clk 0:00:22.3]} 15. Nf3
{[%clk 0:01:40.7]} 15... Qe7 {[%clk 0:00:23.2]} 16. Re1 {[%clk 0:01:36.3]} 16...
Rfe8 {[%clk 0:00:22.5]} 17. Bd2 {[%clk 0:01:34.7]} 17... Rad8 {[%clk 0:00:18.5]}
18. e5 {[%clk 0:01:27]} 18... Qe6 {[%clk 0:00:14.8]} 19. Qg4 {[%clk 0:01:20]}
19... Qxg4+ {[%clk 0:00:13.1]} 20. hxg4 {[%clk 0:01:20]} 20... Nxe5 {[%clk
0:00:12.1]} 21. Nxe5 {[%clk 0:01:14.4]} 21... Rxd2 {[%clk 0:00:11.2]} 22. Nf3
{[%clk 0:01:12.1]} 22... Rdd8 {[%clk 0:00:10]} 23. Rxe8+ {[%clk 0:01:11.3]}
23... Rxe8 {[%clk 0:00:10.9]} 24. Rd1 {[%clk 0:01:10.6]} 24... Kf8 {[%clk
0:00:08.4]} 25. Rd7 {[%clk 0:01:10]} 25... Re7 {[%clk 0:00:08.4]} 26. Rxe7
{[%clk 0:01:10.5]} 26... Kxe7 {[%clk 0:00:08.5]} 27. Kf1 {[%clk 0:01:11.1]}
27... h6 {[%clk 0:00:08]} 28. Ke2 {[%clk 0:01:09.8]} 28... Kd6 {[%clk
0:00:08.9]} 29. Ke3 {[%clk 0:01:09.5]} 29... Ke6 {[%clk 0:00:09.3]} 30. Ke4
{[%clk 0:01:09.2]} 30... f6 {[%clk 0:00:07.7]} 31. Nh4 {[%clk 0:01:08.6]} 31...
Kf7 {[%clk 0:00:07.2]} 32. Kf5 {[%clk 0:01:07.1]} 32... c5 {[%clk 0:00:05.9]}
33. c4 {[%clk 0:01:06.2]} 33... b5 {[%clk 0:00:05.8]} 34. b3 {[%clk 0:01:06.2]}
34... bxc4 {[%clk 0:00:04.4]} 35. bxc4 {[%clk 0:01:06.3]} 35... c6 {[%clk
0:00:04.6]} 36. Ng6 {[%clk 0:01:05.4]} 36... a5 {[%clk 0:00:05.5]} 37. a4 {[%clk
0:01:04]} 37... Kg8 {[%clk 0:00:01.5]} 38. Ke6 {[%clk 0:00:59.5]} 1-0

[Event "*** SCC Grand Prix: Titled Tuesday Blitz"]
[Site "Chess.com"]
[Date "2020.10.13"]
[Round "4"]
[White "SergeyKarjakin"]
[Black "vanea_03"]
[Result "1-0"]
[WhiteElo "2900"]
[BlackElo "2692"]
[TimeControl "180+1"]
[EndTime "10:38:51 PDT"]
[Termination "SergeyKarjakin won by resignation"]

1. d4 {[%clk 0:03:00.9]} 1... d5 {[%clk 0:02:59.3]} 2. Bg5 {[%clk 0:03:00.6]}
2... Nf6 {[%clk 0:02:56.5]} 3. Nd2 {[%clk 0:03:00.7]} 3... c5 {[%clk 0:02:55.4]}
4. dxc5 {[%clk 0:02:59.3]} 4... e6 {[%clk 0:02:52.4]} 5. e4 {[%clk 0:02:53.7]}
5... Bxc5 {[%clk 0:02:36.9]} 6. Qe2 {[%clk 0:02:28]} 6... Be7 {[%clk 0:02:20.8]}
7. e5 {[%clk 0:02:21.9]} 7... Nfd7 {[%clk 0:02:18.9]} 8. Bxe7 {[%clk 0:02:22.3]}
8... Qxe7 {[%clk 0:02:19.8]} 9. O-O-O {[%clk 0:02:19.2]} 9... Nc6 {[%clk
0:02:18.9]} 10. f4 {[%clk 0:02:19.3]} 10... Nc5 {[%clk 0:02:12.1]} 11. Ngf3
{[%clk 0:02:18.9]} 11... Bd7 {[%clk 0:02:12.3]} 12. Kb1 {[%clk 0:02:17.4]} 12...
Rc8 {[%clk 0:02:09]} 13. Qe3 {[%clk 0:02:15.4]} 13... O-O {[%clk 0:02:00.8]} 14.
Nb3 {[%clk 0:02:06.9]} 14... Nxb3 {[%clk 0:01:57.4]} 15. axb3 {[%clk 0:02:07.8]}
15... f6 {[%clk 0:01:31.5]} 16. Bd3 {[%clk 0:02:06.8]} 16... b6 {[%clk
0:01:20.4]} 17. g3 {[%clk 0:01:50.6]} 17... Qc5 {[%clk 0:01:12.4]} 18. Rhe1
{[%clk 0:01:47.9]} 18... Qxe3 {[%clk 0:01:06.4]} 19. Rxe3 {[%clk 0:01:48.8]}
19... f5 {[%clk 0:01:07]} 20. Bb5 {[%clk 0:01:42.8]} 20... Nb8 {[%clk
0:01:03.7]} 21. Bxd7 {[%clk 0:01:36.6]} 21... Nxd7 {[%clk 0:01:04.6]} 22. c4
{[%clk 0:01:37.3]} 22... d4 {[%clk 0:00:48.7]} 23. Nxd4 {[%clk 0:01:34.5]} 23...
Nc5 {[%clk 0:00:48]} 24. Nb5 {[%clk 0:01:35]} 24... a6 {[%clk 0:00:46.7]} 25.
Nd6 {[%clk 0:01:34.9]} 25... Rc6 {[%clk 0:00:36.9]} 26. b4 {[%clk 0:01:32.9]}
26... Nd7 {[%clk 0:00:29.2]} 27. b3 {[%clk 0:01:29.8]} 27... Nb8 {[%clk
0:00:27.9]} 28. Kb2 {[%clk 0:01:23]} 28... Rd8 {[%clk 0:00:28.3]} 29. Red3
{[%clk 0:01:20.8]} 29... Rf8 {[%clk 0:00:19.2]} 30. b5 {[%clk 0:01:18.2]} 30...
Rc5 {[%clk 0:00:08.5]} 31. bxa6 {[%clk 0:01:09.1]} 31... Nxa6 {[%clk 0:00:09.4]}
32. Nb5 {[%clk 0:01:09.7]} 32... Nb4 {[%clk 0:00:06.1]} 33. Rd6 {[%clk
0:01:07.3]} 33... Re8 {[%clk 0:00:06]} 34. Rxb6 {[%clk 0:01:02.5]} 34... Nc6
{[%clk 0:00:03.2]} 35. Nc7 {[%clk 0:00:58]} 35... Re7 {[%clk 0:00:02.6]} 36. Na6
{[%clk 0:00:57.9]} 1-0